fUST/lending_fUST_20241212
["ID","MTS","AMOUNT","RATE_DAILY","PERIOD"]
[345078867,1733985041968,-319.34,0.000297,2]
[345078870,1733985041983,-3560.92059,0.000297,2]
[345079302,1733985619819,156.0,0.00020223,2]
[345079303,1733985818875,169.528892,0.00013973,2]
[345079446,1733986238390,-4465.84725009,0.00024306,2]
[345079448,1733986238400,-151.0,0.000248,2]
[345079450,1733986238409,-161.323929,0.00027031,2]
[345079452,1733986238419,-300.0,0.00027625,2]
[345079454,1733986238428,-300.0,0.00027625,2]
[345079456,1733986238437,-2160.0,0.00027626,2]
[345079457,1733986238446,-247.53568255,0.00027626,2]
[345079460,1733986238464,-911.71863437,0.00027626,2]
[345079462,1733986238475,-430.58594551,0.00027626,2]
[345079525,1733986240425,-307.60896,0.00027626,2]
[345079526,1733986240437,-472.55077757,0.00027626,2]
[345079527,1733986240446,-736.0,0.00028,60]
[345079528,1733986240455,-455.928,0.0002831,2]
[345079529,1733986240465,-18765.02122245,0.00029666,120]
[345079530,1733986240476,-88262.97877755,0.00029666,120]
[345079531,1733986240487,-12429.49588875,0.00029698,2]
[345079595,1733986243592,-3011.25334035,0.00029698,2]
[345079692,1733986246303,-2513.14404984,0.00029698,2]
[345079698,1733986942841,169.601726,0.00013973,2]
[345079729,1733987432540,-1095.65537,0.0002277,2]
[345079730,1733987432550,-74.86763,0.00023,2]
[345079731,1733987432561,-90.13237,0.00023,2]
[345079732,1733987432570,-165.0,0.00024164,2]
[345079733,1733987432580,-2001.70043193,0.000257,2]
[345079734,1733987432589,-160.0,0.00026397,2]
[345079735,1733987432598,-250.2807764,0.00026522,2]
[345079736,1733987432607,-186.5800838,0.00027261,2]
[345079737,1733987432617,-300.0,0.00027287,2]
[345079738,1733987432625,-300.0,0.00027287,2]
[345079739,1733987432634,-24900.0,0.00027288,2]
[345079740,1733987432644,-160.0,0.00027374,2]
[345079741,1733987432653,-2160.0,0.00027626,2]
[345079742,1733987432662,-464.702,0.0002822,2]
[345079743,1733987432671,-160.0,0.0002835,2]
[345079745,1733987432680,-152.0,0.00028506,2]
[345079747,1733987432689,-153.0,0.00028873,2]
[345079749,1733987432699,-153.0,0.00028873,2]
[345079751,1733987432708,-153.0,0.00028873,2]
[345079753,1733987432717,-153.0,0.00028873,2]
[345079755,1733987432727,-153.0,0.00028873,2]
[345079757,1733987432736,-153.0,0.00028873,2]
[345079759,1733987432745,-153.0,0.00028873,2]
[345079761,1733987432755,-153.0,0.00028873,2]
[345079762,1733987432764,-153.0,0.00028873,2]
[345079763,1733987432774,-153.0,0.00028873,2]
[345079764,1733987432783,-153.0,0.00029117,2]
[345079765,1733987432793,-153.0,0.00029117,2]
[345079766,1733987432802,-153.0,0.00029117,2]
[345079767,1733987432811,-153.0,0.00029117,2]
[345079768,1733987432821,-153.0,0.00029117,2]
[345079769,1733987432830,-153.0,0.00029117,2]
[345079770,1733987432840,-153.0,0.00029117,2]
[345079771,1733987432849,-153.0,0.00029117,2]
[345079772,1733987432860,-153.0,0.00029117,2]
[345079773,1733987432870,-153.0,0.00029117,2]
[345079774,1733987433032,-153.0,0.00029117,2]
[345079775,1733987433046,-153.0,0.00029117,2]
[345079776,1733987433059,-153.0,0.00029117,2]
[345079777,1733987433070,-153.0,0.00029117,2]
[345079778,1733987433080,-153.0,0.00029117,2]
[345079779,1733987433090,-153.0,0.00029117,2]
[345079780,1733987433102,-153.0,0.00029117,2]
[345079781,1733987433113,-160.0,0.00029327,2]
[345079782,1733987433122,-420.0,0.00029492,2]
[345079783,1733987433132,-941.6,0.00029552,15]
[345079784,1733987433143,-500.0,0.00029665,7]
[345079785,1733987433154,-28553.77607903,0.000297,2]
[345079786,1733987433164,-1127.90212034,0.000297,2]
[345079787,1733987433174,-10010.98298024,0.0002977,7]
[345079788,1733987433184,-151.0,0.0002977,7]
[345079789,1733987433194,-361.111822,0.0002977,7]
[345079790,1733987433204,-361.111822,0.0002977,7]
[345079791,1733987433214,-179.284871,0.0002977,7]
[345079792,1733987433223,-179.284871,0.0002977,7]
[345079793,1733987433236,-234.83578349,0.00029799,2]
[345079794,1733987433245,-500.0,0.00029799,2]
[345079795,1733987433256,-185.12305656,0.00029799,2]
[345079796,1733987433266,-498.51133668,0.00029799,2]
[345079797,1733987433276,-321.99644753,0.00029799,2]
[345079798,1733987433286,-500.0,0.00029799,2]
[345079799,1733987433297,-164.8883415,0.00029799,2]
[345079800,1733987433307,-500.0,0.00029799,2]
[345079801,1733987433318,-500.0,0.00029799,2]
[345079802,1733987433328,-378.31311576,0.00029799,2]
[345079803,1733987433345,-121.68688424,0.00029799,2]
[345079804,1733987433356,-500.0,0.00029799,2]
[345079805,1733987433367,-500.0,0.00029799,2]
[345079806,1733987433377,-500.0,0.00029799,2]
[345079807,1733987433387,-500.0,0.00029799,2]
[345079808,1733987433397,-500.0,0.00029799,2]
[345079809,1733987433407,-500.0,0.00029799,2]
[345079810,1733987433417,-500.0,0.00029799,2]
[345079811,1733987433426,-402.7658301,0.00029799,2]
[345079845,1733987438541,-97.2341699,0.00029799,2]
[345079846,1733987438552,-500.0,0.00029799,2]
[345079847,1733987438562,-213.3558301,0.00029799,2]
[345079848,1733987438573,-286.6441699,0.00029799,2]
[345079850,1733987438583,-500.0,0.00029799,2]
[345079852,1733987438592,-500.0,0.00029799,2]
[345079854,1733987438601,-217.45282676,0.00029799,2]
[345079856,1733987438611,-409.73391904,0.00029799,2]
[345079858,1733987438621,-500.0,0.00029799,2]
[345079860,1733987438630,-500.0,0.00029799,2]
[345079861,1733987438640,-500.0,0.00029799,2]
[345079862,1733987438649,-500.0,0.00029799,2]
[345079863,1733987438659,-500.0,0.00029799,2]
[345079864,1733987438668,-500.0,0.00029799,2]
[345079865,1733987438677,-500.0,0.00029799,2]
[345079866,1733987438687,-500.0,0.00029799,2]
[345079867,1733987438696,-500.0,0.00029799,2]
[345079868,1733987438707,-473.34142869,0.00029799,2]
[345079869,1733987438717,-500.0,0.00029799,2]
[345079870,1733987438727,-500.0,0.00029799,2]
[345079871,1733987438738,-500.0,0.00029799,2]
[345079872,1733987438748,-500.0,0.00029799,2]
[345079873,1733987438757,-227.82753563,0.00029799,2]
[345079874,1733987438770,-272.17246437,0.00029799,2]
[345079875,1733987438780,-500.0,0.00029799,2]
[345079876,1733987438789,-500.0,0.00029799,2]
[345079877,1733987438799,-500.0,0.00029799,2]
[345079878,1733987438809,-500.0,0.00029799,2]
[345079879,1733987438818,-620.89522813,0.00029799,2]
[345079880,1733987438828,-500.0,0.00029799,2]
[345079881,1733987438838,-500.0,0.00029799,2]
[345079882,1733987438848,-500.0,0.00029799,2]
[345079883,1733987438858,-500.0,0.00029799,2]
[345079884,1733987438868,-500.0,0.00029799,2]
[345079885,1733987438878,-500.0,0.00029799,2]
[345079886,1733987438887,-500.0,0.00029799,2]
[345079887,1733987438897,-500.0,0.00029799,2]
[345079888,1733987438907,-500.0,0.00029799,2]
[345079889,1733987438916,-500.0,0.00029799,2]
[345079890,1733987438926,-500.0,0.00029799,2]
[345079891,1733987438936,-500.0,0.00029799,2]
[345079892,1733987438948,-500.0,0.00029799,2]
[345079893,1733987438957,-500.0,0.00029799,2]
[345079894,1733987438967,-500.0,0.00029799,2]
[345079895,1733987438977,-500.0,0.00029799,2]
[345079896,1733987438987,-500.0,0.00029799,2]
[345079897,1733987438997,-500.0,0.00029799,2]
[345079898,1733987439007,-500.0,0.00029799,2]
[345079899,1733987439017,-500.0,0.00029799,2]
[345079900,1733987439027,-259.81874693,0.00029799,2]
[345079901,1733987439036,-151.0,0.00029799,7]
[345079902,1733987439046,-151.0,0.00029799,7]
[345079903,1733987439060,-500.0,0.00029799,7]
[345079904,1733987439070,-500.0,0.00029799,7]
[345079905,1733987439079,-500.0,0.00029799,7]
[345079906,1733987439089,-500.0,0.00029799,7]
[345079907,1733987439099,-361.111822,0.00029799,7]
[345079908,1733987439108,-361.111822,0.00029799,7]
[345079909,1733987439118,-361.111822,0.00029799,7]
[345079910,1733987439129,-361.111822,0.00029799,7]
[345079911,1733987439140,-179.284871,0.00029799,7]
[345079912,1733987439150,-179.284871,0.00029799,7]
[345079913,1733987439159,-179.284871,0.00029799,7]
[345079914,1733987439168,-179.284871,0.00029799,7]
[345079915,1733987439178,-34552.31010381,0.000298,2]
[345079916,1733987439187,-192741.21718476,0.000298,5]
[345080012,1733987894280,169.659993,0.00013973,2]
[345080014,1733987982961,300.0,0.000202,4]
[345080015,1733987993634,300.0,0.000202,4]
[345080023,1733988496864,532.54773246,0.000125,2]
[345080029,1733988517668,14653.26129792,0.0001999,2]
[345080048,1733988632751,-912.97,0.00027824,2]
[345080050,1733988632761,-167.279328,0.00028217,2]
[345080052,1733988632771,-300.0,0.00028218,2]
[345080053,1733988632780,-24455.4726701,0.00028219,2]
[345080054,1733988632789,-192.0,0.00028271,2]
[345080055,1733988632799,-471.752,0.0002831,2]
[345080056,1733988632808,-153.0,0.00028886,2]
[345080057,1733988632817,-153.0,0.00028886,2]
[345080058,1733988632827,-153.0,0.00028886,2]
[345080059,1733988632836,-153.0,0.00028886,2]
[345080060,1733988632845,-153.0,0.00028886,2]
[345080061,1733988632854,-153.0,0.00028886,2]
[345080062,1733988632864,-433.4026504,0.00028986,30]
[345080063,1733988632873,-351.3853278,0.00028986,30]
[345080064,1733988632882,-351.3853278,0.00028986,30]
[345080066,1733988632892,-647.60553333,0.00029,2]
[345080068,1733988632901,-153.0,0.00029118,2]
[345080069,1733988632910,-153.0,0.00029118,2]
[345080070,1733988632919,-153.0,0.00029118,2]
[345080071,1733988632931,-153.0,0.00029118,2]
[345080072,1733988632941,-153.0,0.00029118,2]
[345080073,1733988632950,-153.0,0.00029118,2]
[345080074,1733988632959,-153.0,0.00029118,2]
[345080075,1733988632969,-153.0,0.00029118,2]
[345080076,1733988632978,-153.0,0.00029118,2]
[345080077,1733988632987,-153.0,0.00029118,2]
[345080078,1733988632996,-458.5757487,0.0002926,30]
[345080079,1733988633005,-153.0,0.0002926,30]
[345080080,1733988633015,-192.0,0.00029317,2]
[345080081,1733988633024,-4997.0,0.00029666,120]
[345080082,1733988633034,-300.0,0.000297,120]
[345080083,1733988633043,-300.0,0.000297,30]
[345080084,1733988633053,-168.95618343,0.000297,60]
[345080085,1733988633063,-300.0,0.000297,90]
[345080086,1733988633073,-986.74556117,0.000297,2]
[345080087,1733988633082,-362.4400851,0.000297,2]
[345080088,1733988633099,-539.88161118,0.000297,2]
[345080089,1733988633108,-1073.93175948,0.00029763,21]
[345080090,1733988633120,-2713.2210388,0.00029763,21]
[345080154,1733989025826,169.706606,0.00013973,2]
[345080234,1733989832019,-300.0,0.00023999,2]
[345080235,1733989832029,-300.0,0.00023999,2]
[345080236,1733989832038,-30009.349932,0.00024,2]
[345080237,1733989832047,-862.15236605,0.00025926,2]
[345080239,1733989832056,-420.0,0.00026026,2]
[345080241,1733989832066,-420.0,0.00026399,2]
[345080243,1733989832075,-862.15236601,0.00026622,2]
[345080245,1733989832084,-862.15236601,0.00027317,2]
[345080247,1733989832093,-167.2793281,0.00027677,2]
[345080249,1733989832103,-862.15236601,0.00028013,2]
[345080251,1733989832112,-587.0,0.00028223,2]
[345080253,1733989832121,-452.209,0.0002831,2]
[345080255,1733989832130,-768.6664543,0.00028411,2]
[345080257,1733989832139,-192.0,0.00028513,2]
[345080259,1733989832148,-862.15236601,0.00028709,2]
[345080261,1733989832157,-351.2291458,0.00028986,30]
[345080263,1733989832166,-587.0,0.00029039,2]
[345080266,1733989832175,-153.0,0.00029112,2]
[345080268,1733989832185,-153.0,0.00029112,2]
[345080270,1733989832194,-153.0,0.00029112,2]
[345080272,1733989832203,-213.6027264,0.0002926,30]
[345080274,1733989832213,-153.0017095,0.0002926,30]
[345080276,1733989832223,-213.6027264,0.0002926,30]
[345080278,1733989832232,-153.0017095,0.0002926,30]
[345080280,1733989832241,-213.3120984,0.0002926,30]
[345080282,1733989832250,-153.0017095,0.0002926,30]
[345080284,1733989832259,-862.15236601,0.00029405,2]
[345080286,1733989832269,-213.829264,0.000296,2]
[345080358,1733989843282,-902.31832,0.00029395,15]
[345080360,1733989843292,-4199.54663727,0.000296,2]
[345080366,1733989846237,-31652.2668012,0.000296,2]
[345080373,1733989937557,169.743897,0.00013973,2]
[345080419,1733991021874,1000.0,0.000261,60]
[345080433,1733991032361,-355.597437,0.0002831,2]
[345080434,1733991032467,-77.699563,0.0002831,2]
[345080435,1733991032477,-192.0,0.00028762,2]
[345080436,1733991032487,-1485.52128765,0.000296,2]
[345080466,1733991037959,-4642.13340034,0.000296,2]
[345080467,1733991038014,-54229.44106954,0.000296,2]
[345080468,1733991038024,-2000.0,0.000297,30]
[345080469,1733991038034,-2666.96236343,0.00029763,21]
[345080470,1733991038044,-300.0,0.00029772,2]
[345080471,1733991038053,-300.0,0.00029772,2]
[345080472,1733991038063,-526.9064605,0.00029773,5]
[345080473,1733991038072,-500.0,0.00029773,5]
[345080474,1733991038081,-285.08456622,0.00029773,5]
[345080475,1733991038091,-359.8972134,0.00029795,120]
[345080476,1733991038100,-250.0124785,0.00029799,2]
[345080478,1733991038110,-208.28319533,0.00029799,2]
[345080480,1733991038120,-500.0,0.00029799,2]
[345080482,1733991038129,-500.0,0.00029799,2]
[345080484,1733991038138,-500.0,0.00029799,2]
[345080486,1733991038149,-500.0,0.00029799,2]
[345080488,1733991038159,-500.0,0.00029799,2]
[345080490,1733991038168,-500.0,0.00029799,2]
[345080492,1733991038178,-500.0,0.00029799,2]
[345080494,1733991038187,-362.91648268,0.00029799,2]
[345080495,1733991038197,-500.0,0.00029799,2]
[345080496,1733991038206,-500.0,0.00029799,2]
[345080497,1733991038215,-500.0,0.00029799,2]
[345080498,1733991038225,-500.0,0.00029799,2]
[345080499,1733991038234,-500.0,0.00029799,2]
[345080500,1733991038243,-202.35238537,0.00029799,2]
[345080501,1733991038256,-500.0,0.00029799,7]
[345080502,1733991038270,-197.632,0.00029799,24]
[345080503,1733991038280,-170.96336108,0.00029799,24]
[345080504,1733991038289,-1000.0,0.00029799,3]
[345080505,1733991038299,-153.50460438,0.000298,2]
[345080534,1733991045260,500.0,0.000261,60]
[345080582,1733991046046,-17122.65044753,0.000298,2]
[345080583,1733991046055,-5942.34955245,0.000298,5]
[345080586,1733991046068,-449.9626615,0.000298,5]
[345080596,1733991105515,169.77373,0.00013973,2]
[345085088,1733991558008,652.107,0.000261,60]
[345085406,1733992109505,2599.22414862,0.0002,2]
[345085409,1733992119570,3600.09393007,0.0001999,2]
[345085410,1733992119596,53321.56953918,0.0001999,2]
[345085459,1733992232491,-1000.04454543,0.00025,2]
[345085460,1733992232505,-167.0,0.00025,2]
[345085461,1733992232516,-300.0,0.00026573,2]
[345085462,1733992232526,-300.0,0.00026573,2]
[345085463,1733992232536,-11305.97809374,0.00026574,5]
[345085464,1733992232546,-192.0,0.00027782,2]
[345085465,1733992232556,-248.566546,0.00027784,2]
[345085466,1733992232566,-230.10326577,0.00027962,2]
[345085467,1733992232575,-284.81467136,0.00028,10]
[345085468,1733992232584,-2878.6808203,0.00028034,2]
[345085469,1733992232595,-415.403,0.0002831,2]
[345085470,1733992232604,-1036.54771606,0.00028497,5]
[345085471,1733992232614,-2072.99870085,0.00028497,5]
[345085472,1733992232624,-420.0,0.00028741,2]
[345085473,1733992232633,-419.6778513,0.00028986,30]
[345085474,1733992232643,-153.0,0.00028986,30]
[345085475,1733992232653,-153.0017095,0.00028986,30]
[345085476,1733992232663,-213.5058504,0.00028986,30]
[345085477,1733992232673,-153.0017095,0.00028986,30]
[345085478,1733992232682,-153.0,0.00028986,30]
[345085479,1733992232692,-153.0017095,0.00028986,30]
[345085480,1733992232703,-153.0017095,0.00028986,30]
[345085481,1733992232712,-153.0,0.00028986,30]
[345085482,1733992232722,-153.0017095,0.00028986,30]
[345085483,1733992232732,-233.5313296,0.00028986,30]
[345085484,1733992232742,-153.0,0.00028986,30]
[345085485,1733992232751,-153.0,0.00028986,30]
[345085486,1733992232760,-420.0,0.00029231,2]
[345085487,1733992232770,-184.42553,0.00029645,2]
[345085488,1733992232779,-394.73629639,0.00029654,2]
[345085489,1733992232796,-864.557703,0.00029686,15]
[345085490,1733992232812,-190.82809186,0.00029753,2]
[345085491,1733992232822,-500.0,0.00029753,2]
[345085492,1733992232831,-330.37126985,0.00029753,2]
[345085493,1733992232840,-500.0,0.00029753,2]
[345085494,1733992232849,-500.0,0.00029753,2]
[345085495,1733992232859,-500.0,0.00029753,2]
[345085496,1733992233006,-500.0,0.00029753,2]
[345085497,1733992233016,-175.98187469,0.00029753,2]
[345085498,1733992233027,-387.09019009,0.00029753,2]
[345085499,1733992233038,-197.633,0.00029753,24]
[345085500,1733992233048,-27970.34785451,0.00029754,2]
[345085501,1733992233058,-151.0,0.00029754,7]
[345085502,1733992233068,-151.0,0.00029754,7]
[345085503,1733992233078,-26191.44091212,0.00029754,120]
[345085554,1733992238231,-827.99999998,0.00029754,120]
[345085556,1733992238245,-17974.44420801,0.00029754,120]
[345085557,1733992238256,-8206.32836905,0.00029754,120]
[345085560,1733992238268,-29703.81900599,0.00029754,120]
[345085584,1733992241604,-152.604798,0.00029754,7]
[345085585,1733992241615,-152.19924727,0.00029754,120]
[345085586,1733992241662,-9672.64405105,0.00029754,120]
[345085689,1733992246232,-39074.99999991,0.00029754,120]
[345085691,1733992246244,-2077.2,0.00029754,120]
[345086181,1733992290193,169.797596,0.00013973,2]
[345086380,1733992794309,1023.95686579,0.000261,60]
[345086386,1733992832948,912.0,0.000261,60]
[345086387,1733992884977,912.53433452,0.000261,60]
[345086390,1733992915116,150.0,0.000261,60]
[345086433,1733993432308,-1132.4532312,0.00024211,2]
[345086436,1733993432318,-504.0754458,0.00024703,10]
[345086437,1733993432327,-215.5925026,0.00027225,2]
[345086440,1733993432338,-856.8979989,0.00027536,2]
[345086442,1733993432351,-4352.50544557,0.00028,10]
[345086527,1733993438375,-2990.084995,0.00028,10]
[345086528,1733993438386,-3157.4254304,0.00028,10]
[345086682,1733993443622,-2878.57414995,0.00028,10]
[345086696,1733993446369,-6828.13798886,0.00028,10]
[345086698,1733993446379,-397.791,0.0002831,2]
[345086700,1733993446388,-828.68445,0.00029686,15]
[345086701,1733993446398,-300.0,0.00029753,2]
[345086703,1733993446407,-300.0,0.00029753,2]
[345086705,1733993446416,-244.84,0.00029754,7]
[345086706,1733993446426,-36100.4038633,0.00029754,120]
[345086707,1733993446435,-4979.2,0.00029763,2]
[345086709,1733993446445,-202.35238537,0.00029799,2]
[345086711,1733993446454,-186.2202083,0.00029799,2]
[345086713,1733993446464,-69831.82091602,0.00029799,7]
[345087090,1733993456845,169.797596,0.00013973,2]
[345087131,1733994447285,169.797596,0.00013973,2]
[345087132,1733994519407,300.0,0.000261,60]
[345087183,1733994635457,-172.282041,0.00027522,2]
[345087186,1733994635467,-406.303,0.0002831,2]
[345087188,1733994635477,-300.0,0.0002844,2]
[345087189,1733994635487,-300.0,0.0002844,2]
[345087192,1733994635496,-11674.72141087,0.00028441,2]
[345087194,1733994635507,-5291.90230792,0.00028441,2]
[345087196,1733994635519,-4964.33423811,0.00028441,2]
[345087198,1733994635528,-162.3,0.000286,2]
[345087200,1733994635537,-159.25973289,0.00029,2]
[345087202,1733994635546,-345.39425935,0.00029215,2]
[345087205,1733994635555,-1551.28194021,0.00029261,2]
[345087287,1733994638433,-7641.47275279,0.00029261,2]
[345087289,1733994638443,-151.0,0.00029315,6]
[345087291,1733994638452,-345.39425928,0.00029442,2]
[345087293,1733994638460,-151.0,0.00029498,7]
[345087295,1733994638470,-9192.75469301,0.00029518,2]
[345087297,1733994638480,-300.0,0.000296,2]
[345087299,1733994638489,-345.39425928,0.00029669,2]
[345087301,1733994638497,-151.0,0.0002968,7]
[345087303,1733994638506,-1547.47451709,0.000297,2]
[345087305,1733994638515,-6827.08983058,0.00029763,21]
[345087307,1733994638524,-3646.57459518,0.00029799,7]
[345087309,1733994638532,-205.39605147,0.00029799,2]
[345087311,1733994638540,-294.76190353,0.00029799,2]
[345087313,1733994638549,-464.46284393,0.00029799,2]
[345087350,1733994640523,-35.53715607,0.00029799,2]
[345087351,1733994640532,-162.0,0.00029799,2]
[345087352,1733994640543,-299.30579387,0.00029799,2]
[345087353,1733994640553,-500.0,0.00029799,2]
[345087354,1733994640563,-295.08746068,0.00029799,2]
[345087355,1733994640573,-500.0,0.00029799,2]
[345087356,1733994640582,-500.0,0.00029799,2]
[345087357,1733994640592,-500.0,0.00029799,2]
[345087358,1733994640601,-500.0,0.00029799,2]
[345087359,1733994640610,-500.0,0.00029799,2]
[345087360,1733994640620,-500.0,0.00029799,2]
[345087361,1733994640630,-580.41885046,0.00029799,2]
[345087362,1733994640639,-500.0,0.00029799,2]
[345087363,1733994640649,-500.0,0.00029799,2]
[345087364,1733994640658,-259.03729892,0.00029799,2]
[345087399,1733994643726,-240.96270108,0.00029799,2]
[345087401,1733994643735,-500.0,0.00029799,2]
[345087403,1733994643745,-500.0,0.00029799,2]
[345087405,1733994643754,-500.0,0.00029799,2]
[345087408,1733994643770,-500.0,0.00029799,2]
[345087410,1733994643784,-500.0,0.00029799,2]
[345087413,1733994643794,-500.0,0.00029799,2]
[345087415,1733994643804,-500.0,0.00029799,2]
[345087417,1733994643814,-500.0,0.00029799,2]
[345087419,1733994643824,-500.0,0.00029799,2]
[345087421,1733994643834,-500.0,0.00029799,2]
[345087423,1733994643843,-500.0,0.00029799,2]
[345087425,1733994643853,-500.0,0.00029799,2]
[345087427,1733994643863,-500.0,0.00029799,2]
[345087429,1733994643873,-500.0,0.00029799,2]
[345087431,1733994643883,-500.0,0.00029799,2]
[345087433,1733994643893,-500.0,0.00029799,2]
[345087435,1733994643903,-500.0,0.00029799,2]
[345087438,1733994643913,-500.0,0.00029799,2]
[345087440,1733994643923,-500.0,0.00029799,2]
[345087442,1733994643933,-500.0,0.00029799,2]
[345087444,1733994643943,-500.0,0.00029799,2]
[345087446,1733994643954,-500.0,0.00029799,2]
[345087448,1733994643964,-500.0,0.00029799,2]
[345087450,1733994643978,-500.0,0.00029799,2]
[345087452,1733994643990,-500.0,0.00029799,2]
[345087454,1733994644000,-500.0,0.00029799,2]
[345087456,1733994644010,-190.87385223,0.00029799,2]
[345087458,1733994644020,-500.0,0.00029799,2]
[345087461,1733994644030,-500.0,0.00029799,2]
[345087463,1733994644040,-500.0,0.00029799,2]
[345087465,1733994644050,-500.0,0.00029799,2]
[345087467,1733994644060,-500.0,0.00029799,2]
[345087469,1733994644070,-500.0,0.00029799,2]
[345087471,1733994644080,-500.0,0.00029799,2]
[345087473,1733994644090,-500.0,0.00029799,2]
[345087475,1733994644100,-500.0,0.00029799,2]
[345087477,1733994644110,-500.0,0.00029799,2]
[345087479,1733994644120,-500.0,0.00029799,2]
[345087481,1733994644131,-500.0,0.00029799,2]
[345087483,1733994644141,-500.0,0.00029799,2]
[345087486,1733994644151,-500.0,0.00029799,2]
[345087488,1733994644161,-500.0,0.00029799,2]
[345087490,1733994644171,-500.0,0.00029799,2]
[345087492,1733994644180,-500.0,0.00029799,2]
[345087494,1733994644191,-500.0,0.00029799,2]
[345087496,1733994644200,-450.0,0.00029799,2]
[345087498,1733994644210,-500.0,0.00029799,2]
[345087500,1733994644220,-500.0,0.00029799,2]
[345087502,1733994644232,-500.0,0.00029799,2]
[345087504,1733994644241,-31276.97621,0.000298,2]
[345087506,1733994644250,-9334.5980518,0.000298,5]
[345087618,1733994646448,-11484.20432844,0.000298,5]
[345087635,1733995239129,1677.5529607,0.0002,2]
[345087637,1733995452307,169.797596,0.00013973,2]
[345087654,1733995718034,9895.91013183,0.0001999,2]
[345087676,1733995832830,-389.385,0.0002831,2]
[345087677,1733995832840,-651.1557781,0.00028576,2]
[345087678,1733995832849,-162.3,0.000286,2]
[345087680,1733995832858,-300.0,0.00028762,2]
[345087682,1733995832868,-98.61587255,0.00028762,2]
[345087963,1733995839119,-201.38412745,0.00028762,2]
[345087964,1733995839128,-7970.0072519,0.00028763,2]
[345087965,1733995839137,-158.98466441,0.000289,2]
[345087966,1733995839147,-1680.62395624,0.0002927,120]
[345087967,1733995839366,-7107.99781323,0.0002927,120]
[345087971,1733995840712,-2202.58694658,0.0002927,120]
[345087973,1733995840768,-7655.042,0.0002927,120]
[345087979,1733995843875,-99441.56396325,0.0002927,120]
[345087980,1733995843897,-1010.1,0.0002927,120]
[345087981,1733995844629,1799.27366754,0.00025,2]
[345088012,1733995860002,1748.95639126,0.00025,2]
[345088022,1733995947806,160.0,0.00025,2]
[345088032,1733996391377,463.81074642,0.000261,60]
[345088034,1733996424595,169.822673,0.00013973,2]
[345088102,1733997031967,-300.78648283,0.00027899,2]
[345088106,1733997031998,-1799.27366754,0.00027899,2]
[345088373,1733997038030,-477.21719935,0.00027899,2]
[345088376,1733997038047,-258.19247566,0.00027899,2]
[345088378,1733997038065,-300.0,0.00027999,2]
[345088381,1733997038082,-300.0,0.00027999,2]
[345088384,1733997038097,-1119.73459805,0.00028,30]
[345088535,1733997040000,-6097.150952,0.00028,30]
[345088587,1733997043018,-4998.69499906,0.00028,30]
[345088589,1733997043038,-7784.41945089,0.00028,30]
[345088591,1733997043048,-240.819505,0.00028276,2]
[345088592,1733997043058,-373.052,0.0002831,2]
[345088594,1733997043070,-162.3,0.000286,2]
[345088596,1733997043080,-388.2631613,0.000288,2]
[345088598,1733997043090,-794.73318,0.00029353,15]
[345088600,1733997043102,-184.42553,0.00029589,2]
[345088602,1733997043113,-300.0,0.000296,2]
[345088603,1733997043122,-656.19904666,0.000297,2]
[345088862,1733997045918,-1530.0,0.000297,2]